Cogmind - Beta 14 @@@ ROGUE MODE // 2024.09.08 @ 21:58:55 Player: Lunace Result: Destroyed by DP-JA5(j) with Overtuned Pulse Rifle Performance ------------- Evolutions (2) 1000 Regions Visited (8) 1600 Robots Destroyed (68) 340 Value Destroyed (2148) 2148 Prototype IDs (37) 740 Alien Tech Used (0) 0 Bonus (889) 889 TOTAL SCORE: 6717 Bonus ------- Follower Combat Kills 620 Aligned with FarCom 300 Friendly Fire -31 Cogmind --------- Core Integrity 0/550 Matter 300/300 Energy 274/290 System Corruption 3% Temperature Cool (21) Movement Walking (100) Location -8/Scraptown Parts ------- > --- POWER (1) -------- Improved Deuterium Engine > --- PROPULSION (4) --- Overtuned Titanium Leg Overtuned Titanium Leg Overtuned Titanium Leg Overtuned Titanium Leg > --- UTILITY (3) ------ Scrap Suit Makeshift Microdissipator Network > --- WEAPON (3) ------- Precision Beam Rifle Precision Beam Rifle Makeshift Spear > --- INVENTORY (5) ---- Precision Beam Rifle Siege Cannon PL-3XN's Ring of Power Peak State ------------ > --- POWER ------------ Cold Fusion Reactor > --- PROPULSION ------- Light Treads Tri-treads > --- UTILITY ---------- Large Storage Unit Siege Articulator Siege Articulator > --- WEAPON ----------- Siege Cannon > --- INVENTORY -------- Deuterium Engine Advanced Treads Carbon-fiber Leg Carbon-fiber Leg Improved Heat Sink Improved Target Analyzer Precision Beam Rifle Precision Beam Rifle Precision Beam Rifle Precision Beam Rifle Precision Beam Rifle Precision Beam Rifle AWS/Thermal Katana [Rating: 60] Favorites ----------- Power Cold Fusion Reactor Engine Ion Engine Reactor Cold Fusion Reactor Propulsion Light Treads Treads Light Treads Leg Overtuned Titanium Leg Utility Large Storage Unit Device Seismic Detector Storage Large Storage Unit Processor Transport Network Coupler Protection Light Armor Plating Weapon AWS/Thermal Energy Gun AWS/Thermal Ballistic Cannon Siege Cannon Special Weapon CPS Tube Slashing Weapon Katana Piercing Weapon Makeshift Spear Build | -11 -10 -10 -10 -9 -8 -8 -8 -8 ------- Run | Yrd Mat Min Exi Min Mat Sto Rec Scr Slots Evolved 4 | . . . . . 4 . . . Power . | . . . . . . . . . Propulsion 2 | . . . . . 2 . . . Utility 1 | . . . . . 1 . . . Weapon 1 | . . . . . 1 . . . Parts Attached 60 | 7 . . 2 . 13 10 3 25 Power 9 | 1 . . . . 2 4 . 2 Engine 7 | 1 . . . . 2 2 . 2 Core . | . . . . . . . . . Reactor 2 | . . . . . . 2 . . Propulsion 17 | 2 . . . . 3 1 2 9 Treads 10 | 2 . . . . 3 1 2 2 Leg 7 | . . . . . . . . 7 Wheel . | . . . . . . . . . Hover . | . . . . . . . . . Flight . | . . . . . . . . . Utility 16 | 2 . . 1 . 5 . 1 7 Device 8 | 1 . . . . 2 . . 5 Storage 3 | 1 . . 1 . 1 . . . Processor 2 | . . . . . 1 . . 1 Hackware . | . . . . . . . . . Protection 3 | . . . . . 1 . 1 1 Artifact . | . . . . . . . . . Weapon 18 | 2 . . 1 . 3 5 . 7 Energy Gun 11 | 2 . . 1 . 1 3 . 4 Energy Cannon . | . . . . . . . . . Ballistic Gun . | . . . . . . . . . Ballistic Cannon 1 | . . . . . . . . 1 Launcher . | . . . . . . . . . Special Weapon 1 | . . . . . . . . 1 Impact Weapon . | . . . . . . . . . Slashing Weapon 5 | . . . . . 2 2 . 1 Piercing Weapon . | . . . . . . . . . Special Melee Weapon . | . . . . . . . . . Unidentified Prototypes 8 | . . . . . 1 6 . 1 Parts Lost 9 | . . . . . 1 . . 8 Power 2 | . . . . . . . . 2 Propulsion 4 | . . . . . . . . 4 Utility 2 | . . . . . 1 . . 1 Weapon 1 | . . . . . . . . 1 Highest Loss Streak 8 | . . . . . 1 . . 8 To Critical Strikes 1 | . . . . . . . . 1 Average Slot Usage (%) 87 | . 100 100 94 85 84 80 87 81 Engine 6 | . 14 14 14 14 9 . . . Reactor 3 | . . . . . . 8 9 7 Treads 30 | . 28 28 28 28 31 36 36 28 Device 6 | . 14 14 14 14 8 . . 2 Storage 10 | . 14 14 14 14 9 9 9 7 Protection 7 | . . . . . 6 9 15 13 Energy Gun 14 | . 28 28 22 14 9 9 9 8 Slashing Weapon 5 | . . . . . 8 8 9 7 Peak Build Rating 60 | 7 7 7 21 21 35 36 38 60 Average Rating 27 | 5 7 7 12 21 32 33 36 40 On Entrance 18 | . 7 7 7 21 21 30 35 38 Naked Turns . | . . . . . . . . . Heaviest Build 60 | 14 14 14 34 34 43 45 48 60 Greatest Support 82 | 40 40 40 40 40 80 80 82 82 Greatest Overweight (x) 2 | . . . . . . . . 2 Average Overweight (x) . | . . . . . . . . . Largest Inventory Capacity 15 | 8 8 8 15 15 15 15 15 15 Average Capacity 12 | 7 8 8 12 15 15 15 15 13 Most Carried 15 | 3 3 4 6 5 12 15 14 15 Average Carried 9 | 1 3 3 4 5 9 12 13 12 Final Capacity 15 | 8 8 8 15 15 15 15 15 5 Final Carried 13 | 3 3 4 5 5 10 13 13 5 Class Distribution -------------------- 45% | Mutant 33% | Commander-Mutant 18% | Scavenger-Mutant Dominant Class ---------------- Mutant | -10/Materials Mutant | -10/Mines Mutant | -10/Exiles Mutant | -9/Mines Scavenger-Mutant | -8/Materials Commander-Mutant | -8/Storage Commander-Mutant | -8/Recycling Commander-Mutant | -8/Scraptown Resources | -11 -10 -10 -10 -9 -8 -8 -8 -8 ----------- Run | Yrd Mat Min Exi Min Mat Sto Rec Scr Matter Collected 1168 | 270 . . 10 10 130 20 110 618 Remotely . | . . . . . . . . . Salvage Created 2979 | 121 80 128 . 1 623 330 202 1494 Parts 167 | 10 2 9 . . 40 21 10 75 Haulers Intercepted 1 | . . . . . 1 . . . Recyclers Shooed 1 | 1 . . . . . . . . Parts Field Recycled . | . . . . . . . . . Retrieved Matter . | . . . . . . . . . Parts Self-Destructed . | . . . . . . . . . Prevented . | . . . . . . . . . Kills | -11 -10 -10 -10 -9 -8 -8 -8 -8 ------- Run | Yrd Mat Min Exi Min Mat Sto Rec Scr Combat Hostiles Destroyed 55 | . 2 8 . 1 7 7 5 25 Melee 7 | . . . . . 2 2 1 2 Guns 33 | . 2 8 . 1 5 5 4 8 Cannons 14 | . . . . . . . . 14 Classes Destroyed 19 | 2 1 1 . 1 5 . 2 7 Builder 2 | . . . . . 2 . . . Tunneler 2 | 2 . . . . . . . . Hauler 1 | . . . . . 1 . . . Recycler 3 | 1 . . . . 1 1 . . Operator 1 | . . . . . 1 . . . Watcher 4 | . . . . . 3 1 . . Swarmer 13 | . . 8 . . . 4 1 . Grunt 9 | . 2 . . . 5 1 1 . Duelist 1 | . . . . . . . 1 . Sentry 5 | . . . . . 2 2 1 . Demolisher 1 | . . . . 1 . . . . Hunter 1 | . . . . . . . 1 . Bolteater 1 | . . . . . . . . 1 Federalist 5 | . . . . . . . . 5 Explorer 4 | . . . . . . . . 4 Ranger 1 | . . . . . . . . 1 Scrapper 9 | . . . . . . . . 9 Elite 3 | . . . . . . . . 3 Tinkerer 1 | . . . . . . . . 1 Thug 1 | . . . . . . . . 1 Best Kill Streak 11 | 3 2 3 . 1 8 6 3 11 Combat Bots Only 11 | . 2 3 . 1 5 5 3 11 Max Kills in Single Turn 2 | 1 1 1 . 1 2 1 1 1 Gunslinging . | . . . . . . . . . Exploded . | . . . . . . . . . Melee 1 | . . . . . 1 1 1 1 Uniques/NPCs Destroyed 1 | . . . . . . . . 1 Triborg (-8/Scraptown) Combat | -11 -10 -10 -10 -9 -8 -8 -8 -8 -------- Run | Yrd Mat Min Exi Min Mat Sto Rec Scr Hostile Shots Fired 285 | . 16 31 . . 6 13 8 211 Missed 67 | . 5 11 . . 3 2 1 45 Damage Taken 3434 | . 123 161 . . 105 156 104 2785 Core 613 | . 20 41 . . . . 15 537 Absorbed by Shields 64 | . . . . . . . . 64 Reduced by Siege Mode 354 | . . . . . . . . 354 Core Remaining (%) 87 | 100 . . . 75 . . . . Volleys Fired 79 | 8 13 13 . . . . . 45 Largest 2 | 2 2 2 . . . . . 2 Hottest 122 | 90 90 90 . . . . . 122 Shots Fired 218 | 16 26 26 . 4 27 21 18 80 Gun 189 | 16 26 26 . 4 27 21 18 51 Cannon 27 | . . . . . . . . 27 Launcher . | . . . . . . . . . Special 2 | . . . . . . . . 2 Kinetic 27 | . . . . . . . . 27 Thermal 189 | 16 26 26 . 4 27 21 18 51 Explosive . | . . . . . . . . . Electromagnetic . | . . . . . . . . . Robot Hit Streak 33 | 7 8 3 . 6 14 13 21 33 Robot Miss Streak 3 | 1 2 3 . . 2 1 . 3 Penetration Max 1 | . . . . . . . . 1 Secondary Targets 2 | . . 2 . . . . . . Max Gunslinging Chain 1 | . . 1 . . . . . . Autonomous 103 | . . . . 4 27 21 18 33 Shots Hit Robots 205 | 13 15 16 . 4 32 26 22 77 Core Hits 74 | 4 5 8 . 1 17 10 5 24 Critical Kills . | . . . . . . . . . Critical Parts Destroyed . | . . . . . . . . . Critical Strikes 3 | . . . . . . 1 . 2 Burn 1 | . . . . . . . . 1 Sever 2 | . . . . . . 1 . 1 Melee Attacks 58 | . . . . . 26 16 4 12 Impact . | . . . . . . . . . Slashing 58 | . . . . . 26 16 4 12 Piercing . | . . . . . . . . . Sneak Attacks 10 | . . . . . 6 1 2 1 Combat Hostiles 2 | . . . . . . . 2 . Follow-up Attacks . | . . . . . . . . . Damage Inflicted 7014 | 151 176 193 . 116 1161 825 705 3687 Guns 3517 | 151 176 193 . 116 642 563 544 1132 Cannons 2256 | . . . . . . . . 2256 Explosions . | . . . . . . . . . Melee 1241 | . . . . . 519 262 161 299 Ramming . | . . . . . . . . . Kinetic 2256 | . . . . . . . . 2256 Thermal 3517 | 151 176 193 . 116 642 563 544 1132 Explosive . | . . . . . . . . . Electromagnetic . | . . . . . . . . . Impact . | . . . . . . . . . Slashing 1241 | . . . . . 519 262 161 299 Piercing . | . . . . . . . . . Highest Corruption 3 | . . . . . . . . 3 Average Corruption 2 | . . . . . . . . 2 Corruption Purged . | . . . . . . . . . Corruption Blocked . | . . . . . . . . . Effects 2 | . . . . . . . . 2 Heat Flow Errors 1 | . . . . . . . . 1 Energy Discharges 1 | . . . . . . . . 1 Overload Shots . | . . . . . . . . . Overflow Damage 374 | . . . . . . . . 374 Projectiles 311 | . . . . . . . . 311 Explosions . | . . . . . . . . . Melee 63 | . . . . . . . . 63 Knockbacks 3 | . . . . . . . . 3 Impact . | . . . . . . . . . Kinetic 3 | . . . . . . . . 3 Secondary . | . . . . . . . . . Self-Inflicted Damage . | . . . . . . . . . Shots . | . . . . . . . . . Rammed . | . . . . . . . . . Targets Rammed . | . . . . . . . . . Kicked . | . . . . . . . . . Crushed . | . . . . . . . . . Highest Temperature 543 | 150 360 150 . . . 1 . 543 Average Temperature 116 | 66 147 68 . . . 1 . 140 Received Heat Transfer 1253 | . 66 . . . 9 63 18 1097 Effects 7 | . . . . . . . . 7 Interference 1 | . . . . . . . . 1 Matter Decay 2 | . . . . . . . . 2 Damage (major) 3 | . . . . . . . . 3 Damage (core) 1 | . . . . . . . . 1 Siege Activations 4 | . . . . . . . . 4 Total Turns 59 | . . . . . . . . 59 Longest Duration 31 | . . . . . . . . 31 Robots Corrupted . | . . . . . . . . . Combat Hostiles . | . . . . . . . . . Parts Fried . | . . . . . . . . . Impact Corruptions . | . . . . . . . . . Robots Melted 1 | . . . . . . . . 1 Combat Hostiles 1 | . . . . . . . . 1 Parts Melted 10 | 1 2 . . . 1 2 . 4 Heat Transferred 5477 | 397 459 509 . 148 814 703 666 1781 Parts Sabotaged . | . . . . . . . . . Parts Stolen . | . . . . . . . . . Parts Stripped . | . . . . . . . . . Power Chain Reactions . | . . . . . . . . . Alert | -11 -10 -10 -10 -9 -8 -8 -8 -8 ------- Run | Yrd Mat Min Exi Min Mat Sto Rec Scr Peak Influence 406 | 15 83 190 . 35 232 283 406 . Initial 94 | . 9 . . . . 11 94 . Average 104 | 4 25 41 . 19 46 123 309 . Maximum Alert Level 2 | . . . . . 1 1 2 . Low Security (%) 75 | 100 100 100 . 100 94 72 6 . Level 1 20 | . . . . . 5 27 76 . Level 2 3 | . . . . . . . 17 . Level 3 . | . . . . . . . . . Level 4 . | . . . . . . . . . Level 5 . | . . . . . . . . . High Security . | . . . . . . . . . Max Security . | . . . . . . . . . Squads Dispatched 3 | . 1 . . . 2 . . . Investigation 1 | . . . . . 1 . . . Extermination . | . . . . . . . . . Reinforcement 2 | . 1 . . . 1 . . . Assault . | . . . . . . . . . Garrison . | . . . . . . . . . Intercept . | . . . . . . . . . Searches Triggered . | . . . . . . . . . Construction Impeded . | . . . . . . . . . Haulers Reinforced . | . . . . . . . . . Active Scanning Responses . | . . . . . . . . . Cargo Convoy Interrupts . | . . . . . . . . . Stealth | -11 -10 -10 -10 -9 -8 -8 -8 -8 --------- Run | Yrd Mat Min Exi Min Mat Sto Rec Scr Distress Signals 6 | . . . . . 3 3 . . Communications Jammed . | . . . . . . . . . Distress Signals . | . . . . . . . . . Times Spotted 81 | . 5 8 . 3 13 9 6 37 Peak Tracking Total 14 | . 2 3 . 5 4 6 3 14 Tactical Retreats 2 | . . . . . . 1 . 1 Traps | -11 -10 -10 -10 -9 -8 -8 -8 -8 ------- Run | Yrd Mat Min Exi Min Mat Sto Rec Scr Traps Triggered . | . . . . . . . . . Indirectly . | . . . . . . . . . Trap Hack Attempts . | . . . . . . . . . Triggered . | . . . . . . . . . Disarmed . | . . . . . . . . . Reprogrammed . | . . . . . . . . . Reused . | . . . . . . . . . Traps Extracted . | . . . . . . . . . Installed . | . . . . . . . . . Triggered . | . . . . . . . . . Machines | -11 -10 -10 -10 -9 -8 -8 -8 -8 ---------- Run | Yrd Mat Min Exi Min Mat Sto Rec Scr Machines Disabled 9 | . . . . . 1 3 . 5 Max in Single Turn 1 | . . . . . 1 1 . 1 Machines Repaired . | . . . . . . . . . Machines Dismantled . | . . . . . . . . . Machines Sabotaged . | . . . . . . . . . Overloaded Fab Kills . | . . . . . . . . . Hacking | -11 -10 -10 -10 -9 -8 -8 -8 -8 --------- Run | Yrd Mat Min Exi Min Mat Sto Rec Scr Machines Accessed 30 | . 2 . 2 . 5 10 11 . Terminals 22 | . 2 . . . 5 9 6 . Fabricators . | . . . . . . . . . Repair Stations . | . . . . . . . . . Recycling Units 6 | . . . . . . 1 5 . Scanalyzers . | . . . . . . . . . Garrison Access . | . . . . . . . . . Total Hacks 87 | . 7 . 2 . 24 32 22 . Successful 50 | . 3 . 2 . 12 20 13 . Failed 37 | . 4 . . . 12 12 9 . Catastrophic 3 | . . . . . . 2 1 . Database Lockouts . | . . . . . . . . . Manual 63 | . 7 . 1 . 19 17 19 . Terminals 77 | . 7 . . . 24 29 17 . Fabricators . | . . . . . . . . . Repair Stations . | . . . . . . . . . Recycling Units 8 | . . . . . . 3 5 . Scanalyzers . | . . . . . . . . . Garrison Access . | . . . . . . . . . Terminal Hacks 17 | . . . 2 . 3 11 1 . Record 1 | . . . 1 . . . . . Part Schematic 1 | . . . . . . 1 . . Prototype ID Bank 3 | . . . . . . 3 . . Open Door 4 | . . . . . . 4 . . Branch Access Points 2 | . . . . . 1 1 . . Terminal Index 1 | . . . . . . 1 . . Unreport Threat 1 | . . . . . . . 1 . Locate Traps 1 | . . . . . 1 . . . Zone Layout 2 | . . . . . 1 1 . . Derelict Proto ID Bank 1 | . . . 1 . . . . . Fabricator Hacks . | . . . . . . . . . Repair Station Hacks . | . . . . . . . . . Recycling Unit Hacks 1 | . . . . . . 1 . . Retrieve Components 1 | . . . . . . 1 . . Scanalyzer . | . . . . . . . . . Garrison Access Hacks . | . . . . . . . . . Unauthorized Hacks 32 | . 3 . . . 9 8 12 . Terminals 26 | . 3 . . . 9 7 7 . Assimilate 1 | . . . . . 1 . . . Botnet 8 | . 2 . . . 2 2 2 . Operators 1 | . . . . . 1 . . . Skim 16 | . 1 . . . 5 5 5 . Fabricators . | . . . . . . . . . Repair Stations . | . . . . . . . . . Recycling Units 6 | . . . . . . 1 5 . Recyclers 1 | . . . . . . 1 . . Tunnel 5 | . . . . . . . 5 . Scanalyzers . | . . . . . . . . . Garrison Access . | . . . . . . . . . Data Cores Recovered 1 | . . . . . 1 . . . Used 1 | . . . . . 1 . . . Hacking Detections 20 | . 2 . . . 5 7 6 . Full Trace Events 1 | . . . . . 1 . . . Feedback Events . | . . . . . . . . . Feedback Blocked . | . . . . . . . . . Robot Schematics Acquired . | . . . . . . . . . Robots Built . | . . . . . . . . . Authchips . | . . . . . . . . . Time . | . . . . . . . . . Total Robot Build Rating . | . . . . . . . . . Part Schematics Acquired 2 | . . . . . . 1 . 1 Parts Built . | . . . . . . . . . Authchips . | . . . . . . . . . Time . | . . . . . . . . . Total Part Build Rating . | . . . . . . . . . Parts Repaired . | . . . . . . . . . Time . | . . . . . . . . . Parts Recycled . | . . . . . . . . . Recycled Matter . | . . . . . . . . . Retrieved Matter . | . . . . . . . . . Retrieved Components 2 | . . . . . . 2 . . Parts Scanalyzed . | . . . . . . . . . Part Schematics Acquired . | . . . . . . . . . Parts Damaged . | . . . . . . . . . Bothacking | -11 -10 -10 -10 -9 -8 -8 -8 -8 ------------ Run | Yrd Mat Min Exi Min Mat Sto Rec Scr Used RIF Installer . | . . . . . . . . . Robots Hacked . | . . . . . . . . . Non-combat . | . . . . . . . . . Combat . | . . . . . . . . . Robot Hacks Applied . | . . . . . . . . . Relay Couplers Released . | . . . . . . . . . Fabnet Peak Effective % . | . . . . . . . . . Robots Rewired 11 | . . . . . . 1 10 . Allies Hacked . | . . . . . . . . . Hacks Repelled . | . . . . . . . . . Allies | -11 -10 -10 -10 -9 -8 -8 -8 -8 -------- Run | Yrd Mat Min Exi Min Mat Sto Rec Scr Total Allies 25 | . . . . 5 . 10 10 . Largest Group 17 | . . . . 5 . 10 17 17 Highest-Rated Group 263 | . . . . 87 . 173 263 263 Highest-Rated Ally 31 | . . . . 31 . 29 27 27 Total Orders 13 | . . . . . . . . 13 STAY 13 | . . . . . . . . 13 Ally Attacks 194 | . . . . 12 . 32 32 118 Total Damage 3004 | . . . . 75 . 858 461 1610 Kills 30 | . . . . . . 7 8 15 Allies Corrupted . | . . . . . . . . . Allies Melted . | . . . . . . . . . Intel | -11 -10 -10 -10 -9 -8 -8 -8 -8 ------- Run | Yrd Mat Min Exi Min Mat Sto Rec Scr Robot Analysis Total . | . . . . . . . . . Derelict Logs Recovered 1 | . . 1 . . . . . . Drone Launches . | . . . . . . . . . Drone Recoveries . | . . . . . . . . . Exploration | -11 -10 -10 -10 -9 -8 -8 -8 -8 ------------- Run | Yrd Mat Min Exi Min Mat Sto Rec Scr Turns Passed 5549 | 114 441 700 411 64 1291 645 767 1116 Spaces Moved 2725 | 49 132 399 254 41 549 318 384 599 Core 3 | 3 . . . . . . . . Treads 2639 | 46 132 399 254 41 549 318 384 516 Legs 83 | . . . . . . . . 83 Wheels . | . . . . . . . . . Hover . | . . . . . . . . . Flight . | . . . . . . . . . Fastest Speed 50 | 50 160 160 160 160 160 160 156 100 Average Speed 157 | 153 160 160 160 160 160 160 158 150 Slowest Speed 260 | 160 160 160 160 160 160 160 160 260 Overloaded Moves . | . . . . . . . . . Propulsion Burnouts . | . . . . . . . . . Robots Hopped . | . . . . . . . . . Cave-ins Triggered . | . . . . . . . . . Exploration Rate (%) 48 | 4 33 89 65 13 44 54 81 52 Regions Visited 8 Branch Regions 6 Pre-discovered Areas 9 | . . . 1 . . 1 6 1 Known Exits Taken 2 | . . . . . 1 1 . . Unknown Exits Taken 6 | 1 1 1 1 1 . . 1 . Scrap Searched 9 | . . 2 . . . . . 7 Spaces Dug 20 | . . . . . 16 4 . . Terrain Destroyed 52 | . . . . . 18 6 . 28 Melee 20 | . . . . . 16 4 . . Projectile 32 | . . . . . 2 2 . 28 AOE . | . . . . . . . . . Terrain Rammed . | . . . . . . . . . Walls Destroyed . | . . . . . . . . . Machines Disabled . | . . . . . . . . . Actions | -11 -10 -10 -10 -9 -8 -8 -8 -8 --------- Run | Yrd Mat Min Exi Min Mat Sto Rec Scr Total 3780 | 69 336 435 260 40 923 435 536 746 Wait 670 | 3 192 23 . . 317 65 28 42 Move 2717 | 48 131 398 253 40 548 317 383 599 Hop . | . . . . . . . . . Pick Up 25 | 3 . 1 1 . 7 9 . 4 Fast Attach 34 | 7 . . 1 . 8 6 1 11 Attach 11 | . . . . . 1 2 . 8 Detach 9 | . . . 1 . 2 4 . 2 Swap 15 | . . . 1 . 4 2 2 6 Drop 45 | . . . 3 . 10 13 2 17 Fire 79 | 8 13 13 . . . . . 45 Melee 58 | . . . . . 26 16 4 12 Ram . | . . . . . . . . . Kick . | . . . . . . . . . Crush . | . . . . . . . . . Escape Stasis . | . . . . . . . . . Rewire 117 | . . . . . . 1 116 . Trap . | . . . . . . . . . Miscellaneous . | . . . . . . . . . Route ------- -11/Scrapyard -10/Materials -10/Mines (discovered 3 exits: [*Mat x2] / *Exi) -10/Exiles -9/Mines -8/Materials (discovered 3 exits: *Fac / *Sto x2) -8/Storage (discovered 2 exits: Fac / *Rec) -8/Recycling (discovered 2 exits: *Fac / [*Scr]) -8/Scraptown (discovered 2 exits: *Fac x2) History --------- Turn | Location | Event 6 | -11/Scrapyard | Discovered new exit (range 15) 115 | -11/Scrapyard | Entered Materials 306 | -10/Materials | Build established: Mutant 540 | -10/Materials | Discovered new exit (range 10) 556 | -10/Materials | Entered Mines 581 | -10/Mines | Met a Derelict bent on vengeance 683 | -10/Mines | Learned Materials security intel 744 | -10/Mines | Discovered new exit (range 6) 984 | -10/Mines | Discovered new exit (range 9) 1250 | -10/Mines | Deemed a non-threat by the Exiles lab entrance 1250 | -10/Mines | Discovered new exit (range 5) 1256 | -10/Mines | Entered Exiles 1296 | -10/Exiles | Met 8R-AWN 1322 | -10/Exiles | Met EX-HEX 1437 | -10/Exiles | Met EX-BIN 1456 | -10/Exiles | Aligned with FarCom system 1458 | -10/Exiles | Given EX-Vault access code 1495 | -10/Exiles | Opened EX-Vault 1507 | -10/Exiles | Found AWS/Thermal 1542 | -10/Exiles | Warned to stay clear of 0b10 Research branches 1589 | -10/Exiles | Met EX-DEC 1597 | -10/Exiles | Learned location of Zion (-7) 1648 | -10/Exiles | Discovered new exit (range 14) 1667 | -10/Exiles | Left Exiles lab with AWS/Thermal 1667 | -10/Exiles | Entered Mines 1668 | -9/Mines | Assembled infested the area 1673 | -9/Mines | Assisted by a Guerilla fighting off Assembled 1677 | -9/Mines | Assisted by bots powering up and referring to "LRC-V3" 1714 | -9/Mines | Discovered new exit (range 12) 1731 | -9/Mines | Entered Materials 1731 | -8/Materials | Evolved 4 slots: Propulsion x2, Utility x1, Weapon x1 1802 | -8/Materials | Identified exit to Storage 2101 | -8/Materials | Discovered new exit (range 14) 2387 | -8/Materials | Build established: Scavenger-Mutant 3022 | -8/Materials | Entered Storage 3347 | -8/Storage | Assisted by bots powering up and referring to "LRC-V3" 3415 | -8/Storage | Identified exit to Recycling 3548 | -8/Storage | Learned Factory stockpile data 3593 | -8/Storage | Identified exit to Factory 3627 | -8/Storage | Learned 12 Factory zone layouts 3641 | -8/Storage | Build established: Commander-Mutant 3650 | -8/Storage | Learned Factory stockpile data 3650 | -8/Storage | Used back door to open Recycling access 3667 | -8/Storage | Entered Recycling 3667 | -8/Recycling | Accompanied by 7 allies 4046 | -8/Recycling | Discovered new exit (range 5) 4259 | -8/Recycling | Learned location of Lower Caves (-6) 4295 | -8/Recycling | Learned Factory security intel 4323 | -8/Recycling | Learned location of 1 exit from Lower Caves 4343 | -8/Recycling | Learned 2 Lower Caves zone layouts 4355 | -8/Recycling | Learned location of 1 exit from Lower Caves 4368 | -8/Recycling | Learned 4 Lower Caves zone layouts 4370 | -8/Recycling | Scanned before Scraplab entrance 4392 | -8/Recycling | Entered Scraplab 4404 | -8/Recycling | Discovered new exit (range 2) 4434 | -8/Recycling | Entered Scraptown 4434 | -8/Scraptown | Accompanied by 17 allies 4435 | -8/Scraptown | Identified exit to Factory 4522 | -8/Scraptown | Turned away by UFD registrar 4539 | -8/Scraptown | Visited Bundlers 4606 | -8/Scraptown | Visited Shadow of the Wyrm 5108 | -8/Scraptown | Visited Spacefarers 5126 | -8/Scraptown | Visited IN-MT5's Study 5173 | -8/Scraptown | Visited Awakened 5247 | -8/Scraptown | Attacked by Scraptown defenders 5248 | -8/Scraptown | Destroyed Triborg 5254 | -8/Scraptown | Found Siege Articulator 5258 | -8/Scraptown | Found Tri-treads 5263 | -8/Scraptown | Found Siege Articulator 5269 | -8/Scraptown | Found Prototype Ballistic Cannon 5269 | -8/Scraptown | Identified Siege Cannon 5345 | -8/Scraptown | Destroyed 11 combat bots 5348 | -8/Scraptown | Lost 17 allies 5370 | -8/Scraptown | Core integrity fell below 50% 5374 | -8/Scraptown | AWS/Thermal suddenly broke down 5376 | -8/Scraptown | Found PL-3XN's Ring of Power 5392 | -8/Scraptown | Destroyed 10 combat bots 5435 | -8/Scraptown | Core integrity fell below 20% 5462 | -8/Scraptown | Lost 8 parts (2p4n1u1w) 5498 | -8/Scraptown | Found Scrap Suit 5550 | -8/Scraptown | Destroyed by DP-JA5(j) with Overtuned Pulse Rifle Last Messages --------------- 05495_ Acquired Ovr. Titanium Leg. 05498_ Acquired Scrap Suit. 05501_ Acquired Ovr. Titanium Leg. 05501_ Critical hit (Burn: +50). 05503_ Dropped Carbon-fiber Leg. 05504_ Acquired Ovr. Titanium Leg. 05506_ Mak. Salvage Targeting Computer melted. 05506_ Lgt. Deuterium Engine melted. 05506_ IK-4J1(j) destroyed. 05516_ Acquired 50 matter. 05519_ Discarded Imp. Target Analyzer. 05520_ Acquired Mak. Microdissipator Network. 05524_ Dropped Ovr. Titanium Leg. 05524_ Acquired 12 matter. 05525_ Acquired 8 matter. 05532_ Dropped Prc. Beam Rifle. 05532_ Acquired Siege Cannon. 05533_ Acquired 10 matter. 05535_ Dropped Katana. 05536_ Scrap Suit secures Mak. Spear. Map ----- +----------------------------------------------------+ | #?????????????????????????????????????????????? | | ########## #??????????####????????????????????? | | ??????? ????????????????????? | | ???? #???????????????????? | | ?? #???????????????????? | | ?? #???????????????????? | | ??? #???????????????????? | | ############????# #???????????????????? | | #?#####?######### #???????????????????? | | #?# [ #""" ""## #???????????????????? | | #?#][! #"%" "## #???????????????????? | | #?# |]! ## #???????????????????? | | #?#! ]/!# / "## #???????????????????? | | #?####### "##j = ###?????????????????? | | #?#""]= ## [%* [""#"#???????????????? | | #?#"%! !%""## =!""""#???????????????? | | #?#""/ [!!"## *%""#?????????????????? | | % #?# %%"## !!###?????????????????? | | ###"" ]""## !!% =#####???????????????? | | ##""% #; !%= % "???????????????? | | #?# "! ""# [!!%*!!= "???????????????? | | ### ## /%=*!!*! "???????????????? | | *= # # ## =/!!=[*=* "???????????????? | | %!*#=#"##"##"## #### ==!!%!!% "???????????????? | | [%%/ ! [* !%= *!!!!! "???????????????? | | ! % %= ![! / = % @%* "???????????????? | | = % [ % ! %[= !% !=%% "???????????????? | | %!* = %[*%/ !%! % "???????????????? | | !%[ %!! %%![ !* "???????????????? | | =*% = %=/ !*= %= =*= #"???????????????? | | [% /=%=%% !%%%[ #????????????????? | | % %% ! ![%!! #????????????????? | | #"#"""" "#"";#########=### ####????????????????? | | " "#####?????? ! # #???????????????????? | | "#???????? # #???????????????????? | | "#??????# # #???????????????????? | | " """ "#??????# # #???????????????????? | | " """ "#??????# # #???????????????????? | | " """ "#??????#" "# #???????????????????? | | " "#??????## " " ## #???????????????????? | | " "#???????# # # ## #???????????????????? | | """""""""#???????#####?### #???????????????????? | | ????######???????????????# #???????????????????? | | ?????????????????????????# #???????????????????? | | ????????????????????###### #???????????????????? | | ??????????????????"""""""" #???????????????????? | | ?????????????????""" """"" #???????????????????? | | ?????????##????"""" " "" #???????????????????? | | ????????? ? #???????????????????? | | ###????## ##???"" "" "" " #???????????????????? | +----------------------------------------------------+ Best States ------------- Heat Dissipation 50 Energy Generation 17 Energy Capacity 290 Matter Stores 300 Matter Capacity 300 Sight Range 16 Terrain Scan Density 10 Armor Coverage 375 Evasion (%) 50 Target Analysis 6 Recoil Reduction 4 Item Schematics ----------------- Beam Cannon | -8/Storage | Hacked IN-MT5's Pitchfork "Insurrection" | -8/Scraptown | Archive Robot Schematics ------------------ None Fabricated ------------ Nothing Alien Tech Used ----------------- None Achievements -------------- None Challenges ------------ None Game ------ Seed KineticSpacefoldArchive Manual? 0 Play Time 00:42:46 Cumulative 342.5 hours Start 2024.09.08 @ 20:58:46 End 2024.09.08 @ 21:58:55 Sessions 1 Manual Loads 0 Difficulty Rogue Special Mode None Game No. 348 Rogue 343 Adventurer 5 Explorer 0 Win Type - Total 5 Types 4/0/0/1/0/0/0/0/0 Lore% 77 Gallery% 83 Achievement% 68 Wizard Run 0 Options --------- Layout 1 ASCII 0 Keyboard 0 Movement Arrows Keybinds 0 Fullscreen 1 Font 24/Terminus Map View 50x35 Zoom Use 0% Tactical HUD 1 Map Filters NONE Filters NONE Steam 1 RUN: 6eaf3882-0478-471f-9d7a-f2d788261a15